[Event "Late-Titled-Tuesday-Blitz-May-07-2024"]
[Site "Chess.com"]
[Date "2024.05.07"]
[Round "11"]
[White "maximnovik"]
[Black "andrew-blr"]
[Result "1-0"]
[WhiteElo "2506"]
[BlackElo "2591"]
[TimeControl "180+1"]
[EndTime "16:03:18 PDT"]
[Termination "maximnovik won by resignation"]

1. e4 {[%clk 0:03:00]} 1... c5 {[%clk 0:02:59.7]} 2. Nf3 {[%clk 0:02:59.8]} 2...
e6 {[%clk 0:03:00.1]} 3. c3 {[%clk 0:02:59.8]} 3... d5 {[%clk 0:02:59.8]} 4. e5
{[%clk 0:02:59.8]} 4... Nc6 {[%clk 0:02:58.9]} 5. d4 {[%clk 0:02:59.9]} 5... f6
{[%clk 0:02:59.5]} 6. Bb5 {[%clk 0:02:58.5]} 6... Qb6 {[%clk 0:02:57.7]} 7.
Bxc6+ {[%clk 0:02:56]} 7... bxc6 {[%clk 0:02:57.8]} 8. O-O {[%clk 0:02:55.7]}
8... Bd7 {[%clk 0:02:52.1]} 9. Re1 {[%clk 0:02:55.7]} 9... Ne7 {[%clk
0:02:49.1]} 10. dxc5 {[%clk 0:02:40.5]} 10... Qxc5 {[%clk 0:02:48.5]} 11. Nbd2
{[%clk 0:02:41]} 11... Nf5 {[%clk 0:02:43.4]} 12. Nb3 {[%clk 0:02:40.9]} 12...
Qb6 {[%clk 0:02:32.5]} 13. exf6 {[%clk 0:02:40.4]} 13... gxf6 {[%clk 0:02:31.7]}
14. Nfd4 {[%clk 0:02:40.6]} 14... Nxd4 {[%clk 0:02:21.6]} 15. Qh5+ {[%clk
0:02:39.2]} 15... Kd8 {[%clk 0:02:19.1]} 16. cxd4 {[%clk 0:02:34.3]} 16... a5
{[%clk 0:02:12.4]} 17. Qf7 {[%clk 0:02:29.5]} 17... Be7 {[%clk 0:02:12]} 18. Bh6
{[%clk 0:02:28.7]} 18... Re8 {[%clk 0:02:01.2]} 19. Bg7 {[%clk 0:02:25.5]} 19...
a4 {[%clk 0:01:47]} 20. Nc5 {[%clk 0:02:16.9]} 20... Bxc5 {[%clk 0:01:46.6]} 21.
dxc5 {[%clk 0:02:16.7]} 21... Qxc5 {[%clk 0:01:42.6]} 22. Bxf6+ {[%clk
0:02:15.1]} 22... Kc7 {[%clk 0:01:30.8]} 23. Rac1 {[%clk 0:02:13.4]} 23... Qf8
{[%clk 0:01:30.5]} 24. Be5+ {[%clk 0:02:13.3]} 24... Kc8 {[%clk 0:01:30.9]} 25.
Rxc6+ {[%clk 0:02:12.5]} 1-0

[Event "Late-Titled-Tuesday-Blitz-May-07-2024"]
[Site "Chess.com"]
[Date "2024.05.07"]
[Round "11"]
[White "ZachHKL"]
[Black "martinmena"]
[Result "1-0"]
[WhiteElo "2316"]
[BlackElo "2123"]
[TimeControl "180+1"]
[EndTime "16:03:48 PDT"]
[Termination "ZachHKL won by checkmate"]

1. e4 {[%clk 0:03:00.9]} 1... c6 {[%clk 0:02:59.1]} 2. d4 {[%clk 0:03:00]} 2...
d5 {[%clk 0:02:59.9]} 3. e5 {[%clk 0:02:59.5]} 3... Bf5 {[%clk 0:02:56.5]} 4. g4
{[%clk 0:02:57]} 4... Bd7 {[%clk 0:02:55.1]} 5. Be3 {[%clk 0:02:52]} 5... h5
{[%clk 0:02:55.2]} 6. gxh5 {[%clk 0:02:49.4]} 6... Bf5 {[%clk 0:02:55.6]} 7. Bd3
{[%clk 0:02:45.8]} 7... Bxd3 {[%clk 0:02:54.8]} 8. Qxd3 {[%clk 0:02:46.2]} 8...
e6 {[%clk 0:02:55.3]} 9. Qe2 {[%clk 0:02:45.4]} 9... Be7 {[%clk 0:02:52.9]} 10.
Qg4 {[%clk 0:02:43.7]} 10... Kf8 {[%clk 0:02:51.8]} 11. Nf3 {[%clk 0:02:41.9]}
11... Nh6 {[%clk 0:02:51.4]} 12. Bxh6 {[%clk 0:02:41.2]} 12... Rxh6 {[%clk
0:02:51.3]} 13. Rg1 {[%clk 0:02:38.1]} 13... g6 {[%clk 0:02:47.1]} 14. Qf4
{[%clk 0:02:21.7]} 14... Rxh5 {[%clk 0:02:38.3]} 15. Rxg6 {[%clk 0:02:20.2]}
15... Qb6 {[%clk 0:02:31.6]} 16. Nbd2 {[%clk 0:02:10.8]} 16... Rf5 {[%clk
0:02:25.7]} 17. Qh6+ {[%clk 0:02:08.6]} 17... Ke8 {[%clk 0:02:26.2]} 18. Rg8+
{[%clk 0:02:08.1]} 18... Kd7 {[%clk 0:02:26.4]} 19. O-O-O {[%clk 0:02:05.8]}
19... Qa6 {[%clk 0:02:05.5]} 20. Kb1 {[%clk 0:01:56.9]} 20... Ba3 {[%clk
0:02:05.5]} 21. bxa3 {[%clk 0:01:37.4]} 21... Qxa3 {[%clk 0:02:06.4]} 22. Qf8
{[%clk 0:01:31.6]} 22... Qxf8 {[%clk 0:01:59.3]} 23. Rxf8 {[%clk 0:01:32.5]}
23... a5 {[%clk 0:01:52]} 24. Rg1 {[%clk 0:01:31.4]} 24... Ke7 {[%clk
0:01:50.6]} 25. Rgg8 {[%clk 0:01:30.7]} 25... Ra6 {[%clk 0:01:47.6]} 26. Rxb8
{[%clk 0:01:27.4]} 26... Rb6+ {[%clk 0:01:47.4]} 27. Kc1 {[%clk 0:01:27.4]}
27... f6 {[%clk 0:01:40.1]} 28. Rg7# {[%clk 0:01:27]} 1-0

[Event "Late-Titled-Tuesday-Blitz-May-07-2024"]
[Site "Chess.com"]
[Date "2024.05.07"]
[Round "11"]
[White "maurovargas01"]
[Black "Arteler"]
[Result "1-0"]
[WhiteElo "1965"]
[BlackElo "2223"]
[TimeControl "180+1"]
[EndTime "16:04:03 PDT"]
[Termination "maurovargas01 won by resignation"]

1. e4 {[%clk 0:02:39.5]} 1... e6 {[%clk 0:02:59.7]} 2. Nc3 {[%clk 0:02:39.4]}
2... d5 {[%clk 0:02:59.9]} 3. e5 {[%clk 0:02:39.2]} 3... c5 {[%clk 0:02:59.7]}
4. f4 {[%clk 0:02:38.9]} 4... Nc6 {[%clk 0:02:59.6]} 5. Nf3 {[%clk 0:02:39.2]}
5... Qb6 {[%clk 0:02:59.4]} 6. Bb5 {[%clk 0:02:37.9]} 6... a6 {[%clk 0:02:58.7]}
7. Bxc6+ {[%clk 0:02:38]} 7... Qxc6 {[%clk 0:02:53.5]} 8. d3 {[%clk 0:02:37.4]}
8... Ne7 {[%clk 0:02:50.7]} 9. O-O {[%clk 0:02:37.2]} 9... Nf5 {[%clk
0:02:46.5]} 10. Qe1 {[%clk 0:02:36.4]} 10... c4 {[%clk 0:02:44.6]} 11. Ne2
{[%clk 0:02:32.9]} 11... Bc5+ {[%clk 0:02:36.3]} 12. Kh1 {[%clk 0:02:31.7]}
12... cxd3 {[%clk 0:02:35.5]} 13. cxd3 {[%clk 0:02:31.3]} 13... Be3 {[%clk
0:02:30.9]} 14. g4 {[%clk 0:02:26.1]} 14... Bxc1 {[%clk 0:02:27.9]} 15. Qxc1
{[%clk 0:02:25.9]} 15... Ne7 {[%clk 0:02:14]} 16. Qd2 {[%clk 0:02:22.5]} 16...
O-O {[%clk 0:02:06.1]} 17. Rac1 {[%clk 0:02:18]} 17... Qb6 {[%clk 0:02:04.1]}
18. b3 {[%clk 0:02:16.3]} 18... Nc6 {[%clk 0:02:03.8]} 19. Ng5 {[%clk
0:02:09.6]} 19... h6 {[%clk 0:02:02.4]} 20. Nf3 {[%clk 0:02:07.9]} 20... Bd7
{[%clk 0:02:01.5]} 21. Ng3 {[%clk 0:02:06.6]} 21... Rac8 {[%clk 0:02:01.3]} 22.
g5 {[%clk 0:02:04.8]} 22... hxg5 {[%clk 0:01:58.5]} 23. Nxg5 {[%clk 0:01:58.9]}
23... Ne7 {[%clk 0:01:53]} 24. Qe2 {[%clk 0:01:58.5]} 24... g6 {[%clk
0:01:43.6]} 25. Qg4 {[%clk 0:01:52.6]} 25... Rxc1 {[%clk 0:01:20.8]} 26. Rxc1
{[%clk 0:01:52]} 26... Bc6 {[%clk 0:01:12.8]} 27. Rxc6 {[%clk 0:01:44.4]} 27...
d4 {[%clk 0:01:13.7]} 28. Rxb6 {[%clk 0:01:42.9]} 1-0

[Event "Late-Titled-Tuesday-Blitz-May-07-2024"]
[Site "Chess.com"]
[Date "2024.05.07"]
[Round "11"]
[White "betta2004"]
[Black "yaguigor"]
[Result "1-0"]
[WhiteElo "2497"]
[BlackElo "2577"]
[TimeControl "180+1"]
[EndTime "16:04:15 PDT"]
[Termination "betta2004 won by resignation"]

1. Nf3 {[%clk 0:03:00.9]} 1... d5 {[%clk 0:02:58.7]} 2. e3 {[%clk 0:02:59.3]}
2... Nf6 {[%clk 0:02:57.6]} 3. b3 {[%clk 0:02:59.3]} 3... c6 {[%clk 0:02:56.2]}
4. Bb2 {[%clk 0:02:59.5]} 4... Bg4 {[%clk 0:02:56.3]} 5. Be2 {[%clk 0:02:59.2]}
5... e6 {[%clk 0:02:53.5]} 6. Ne5 {[%clk 0:02:59]} 6... Bxe2 {[%clk 0:02:51.6]}
7. Qxe2 {[%clk 0:02:59.9]} 7... Nbd7 {[%clk 0:02:51.2]} 8. f4 {[%clk 0:02:52.3]}
8... Be7 {[%clk 0:02:49.2]} 9. O-O {[%clk 0:02:52.1]} 9... O-O {[%clk
0:02:49.1]} 10. d3 {[%clk 0:02:51.8]} 10... Nxe5 {[%clk 0:02:42.5]} 11. fxe5
{[%clk 0:02:50.6]} 11... Nd7 {[%clk 0:02:42.5]} 12. Nd2 {[%clk 0:02:51.2]} 12...
f5 {[%clk 0:02:40.8]} 13. e4 {[%clk 0:02:48.9]} 13... Qb6+ {[%clk 0:02:04.7]}
14. Kh1 {[%clk 0:02:46.1]} 14... fxe4 {[%clk 0:02:00.4]} 15. dxe4 {[%clk
0:02:47]} 15... Rxf1+ {[%clk 0:01:53.5]} 16. Rxf1 {[%clk 0:02:47.9]} 16... Rf8
{[%clk 0:01:52.4]} 17. Rxf8+ {[%clk 0:02:46.4]} 17... Nxf8 {[%clk 0:01:51.5]}
18. exd5 {[%clk 0:02:47.3]} 18... cxd5 {[%clk 0:01:49.3]} 19. Nf3 {[%clk
0:02:45.9]} 19... a6 {[%clk 0:01:39.5]} 20. c4 {[%clk 0:02:45.7]} 20... Qc6
{[%clk 0:01:37.4]} 21. cxd5 {[%clk 0:02:45]} 21... Qxd5 {[%clk 0:01:35.1]} 22.
h3 {[%clk 0:02:44.9]} 22... Ng6 {[%clk 0:01:31.3]} 23. Qc2 {[%clk 0:02:42.2]}
23... h6 {[%clk 0:01:21.6]} 24. Qxg6 {[%clk 0:02:38.5]} 24... Kf8 {[%clk
0:01:14.3]} 25. Qc2 {[%clk 0:02:35.5]} 25... Kf7 {[%clk 0:01:13.1]} 26. Qf2
{[%clk 0:02:33.6]} 26... Kg8 {[%clk 0:01:12.5]} 27. Qd4 {[%clk 0:02:33.9]} 27...
Qc6 {[%clk 0:01:10.8]} 28. Qc4 {[%clk 0:02:34.4]} 28... Qd7 {[%clk 0:01:10]} 29.
Nd4 {[%clk 0:02:34.8]} 29... Kf7 {[%clk 0:01:07.1]} 30. Nf5 {[%clk 0:02:28.5]}
30... Bf8 {[%clk 0:01:02.1]} 31. Kh2 {[%clk 0:02:20.6]} 31... h5 {[%clk
0:00:53.7]} 32. Nd4 {[%clk 0:02:12.9]} 32... g6 {[%clk 0:00:50.2]} 33. Qf1+
{[%clk 0:02:12.6]} 1-0

[Event "Late-Titled-Tuesday-Blitz-May-07-2024"]
[Site "Chess.com"]
[Date "2024.05.07"]
[Round "11"]
[White "HaryKane"]
[Black "Denisenko_Denis"]
[Result "1/2-1/2"]
[WhiteElo "2537"]
[BlackElo "2423"]
[TimeControl "180+1"]
[EndTime "16:04:26 PDT"]
[Termination "Game drawn by repetition"]

1. e4 {[%clk 0:03:00.9]} 1... e5 {[%clk 0:02:59.7]} 2. Nf3 {[%clk 0:02:59.5]}
2... Nf6 {[%clk 0:02:59.9]} 3. Nc3 {[%clk 0:02:55.7]} 3... Nc6 {[%clk
0:02:59.7]} 4. Bd3 {[%clk 0:02:55.1]} 4... Bc5 {[%clk 0:02:57.6]} 5. O-O {[%clk
0:02:54.5]} 5... O-O {[%clk 0:02:57.3]} 6. h3 {[%clk 0:02:49.7]} 6... d6 {[%clk
0:02:56.6]} 7. Re1 {[%clk 0:02:47.9]} 7... h6 {[%clk 0:02:55.2]} 8. Na4 {[%clk
0:02:46.3]} 8... Bb6 {[%clk 0:02:54.1]} 9. Nxb6 {[%clk 0:02:45.9]} 9... axb6
{[%clk 0:02:55]} 10. c3 {[%clk 0:02:44.7]} 10... Re8 {[%clk 0:02:53.2]} 11. Bf1
{[%clk 0:02:37.3]} 11... d5 {[%clk 0:02:52.8]} 12. exd5 {[%clk 0:02:29.2]} 12...
Qxd5 {[%clk 0:02:51.8]} 13. d4 {[%clk 0:02:29.3]} 13... exd4 {[%clk 0:02:49.7]}
14. Rxe8+ {[%clk 0:02:27.5]} 14... Nxe8 {[%clk 0:02:49.5]} 15. cxd4 {[%clk
0:02:27.5]} 15... Rxa2 {[%clk 0:02:42.8]} 16. Rxa2 {[%clk 0:02:07.6]} 16... Qxa2
{[%clk 0:02:43.7]} 17. Ne5 {[%clk 0:02:05.3]} 17... Be6 {[%clk 0:02:31.2]} 18.
Qf3 {[%clk 0:01:49.8]} 18... Qd5 {[%clk 0:02:29]} 19. Qxd5 {[%clk 0:01:21.1]}
19... Bxd5 {[%clk 0:02:28]} 20. Nxc6 {[%clk 0:01:21.7]} 20... bxc6 {[%clk
0:02:26.6]} 21. f3 {[%clk 0:01:18.7]} 21... Nd6 {[%clk 0:02:23.1]} 22. Bf4
{[%clk 0:01:18.1]} 22... Kf8 {[%clk 0:02:21.2]} 23. Kf2 {[%clk 0:01:18.3]} 23...
Ke7 {[%clk 0:02:21.1]} 24. Ke3 {[%clk 0:01:18.2]} 24... Kd7 {[%clk 0:02:17.4]}
25. g4 {[%clk 0:01:14]} 25... g5 {[%clk 0:02:14.6]} 26. Be5 {[%clk 0:01:12.9]}
26... Bc4 {[%clk 0:02:10.3]} 27. Bxd6 {[%clk 0:01:07.9]} 27... Bxf1 {[%clk
0:02:09.2]} 28. Bf8 {[%clk 0:01:08.1]} 28... Bxh3 {[%clk 0:02:08.6]} 29. Bxh6
{[%clk 0:01:08.7]} 29... f6 {[%clk 0:02:04.3]} 30. f4 {[%clk 0:01:08]} 30...
Bxg4 {[%clk 0:02:00.9]} 31. fxg5 {[%clk 0:01:07]} 31... fxg5 {[%clk 0:02:01.2]}
32. Bxg5 {[%clk 0:01:07.1]} 32... Kd6 {[%clk 0:01:58.2]} 33. Bf4+ {[%clk
0:01:06.7]} 33... Kd7 {[%clk 0:01:55.9]} 34. Kd3 {[%clk 0:01:06.3]} 34... c5
{[%clk 0:01:54.4]} 35. dxc5 {[%clk 0:01:06.3]} 35... bxc5 {[%clk 0:01:54.8]} 36.
Kc4 {[%clk 0:01:06.7]} 36... Kc6 {[%clk 0:01:54.4]} 37. Kc3 {[%clk 0:01:05]}
37... Be6 {[%clk 0:01:55.3]} 38. b4 {[%clk 0:01:03.2]} 38... c4 {[%clk
0:01:54.8]} 39. Be3 {[%clk 0:01:03.3]} 39... Kb5 {[%clk 0:01:54.3]} 40. Bc5
{[%clk 0:01:03.1]} 40... c6 {[%clk 0:01:54.2]} 41. Bg1 {[%clk 0:01:03.7]} 41...
Bd5 {[%clk 0:01:54.7]} 42. Bc5 {[%clk 0:01:03.6]} 42... Ka4 {[%clk 0:01:55.2]}
43. Bg1 {[%clk 0:01:03.8]} 43... Kb5 {[%clk 0:01:55.8]} 44. Bc5 {[%clk
0:01:04.2]} 44... Ka4 {[%clk 0:01:56.4]} 45. Bg1 {[%clk 0:01:04.9]} 45... Kb5
{[%clk 0:01:57]} 1/2-1/2

[Event "Late-Titled-Tuesday-Blitz-May-07-2024"]
[Site "Chess.com"]
[Date "2024.05.07"]
[Round "11"]
[White "Nicolik"]
[Black "IlanSchnaider"]
[Result "1-0"]
[WhiteElo "2536"]
[BlackElo "2708"]
[TimeControl "180+1"]
[EndTime "16:04:32 PDT"]
[Termination "Nicolik won by checkmate"]

1. d4 {[%clk 0:03:00.9]} 1... Nf6 {[%clk 0:02:57.8]} 2. Nc3 {[%clk 0:03:00.9]}
2... d5 {[%clk 0:02:57.3]} 3. Bf4 {[%clk 0:03:00.4]} 3... c5 {[%clk 0:02:57.9]}
4. e4 {[%clk 0:02:59.9]} 4... Nxe4 {[%clk 0:02:56.1]} 5. Nxe4 {[%clk 0:02:59.7]}
5... dxe4 {[%clk 0:02:57]} 6. dxc5 {[%clk 0:02:56.3]} 6... Nd7 {[%clk
0:02:57.2]} 7. Qd4 {[%clk 0:02:20.3]} 7... e5 {[%clk 0:02:51.4]} 8. Qxe4 {[%clk
0:02:11.4]} 8... Bxc5 {[%clk 0:02:45.6]} 9. O-O-O {[%clk 0:02:01.8]} 9... O-O
{[%clk 0:02:39]} 10. Be3 {[%clk 0:02:01.3]} 10... Qa5 {[%clk 0:02:35.2]} 11. Bc4
{[%clk 0:01:59.4]} 11... Bxe3+ {[%clk 0:02:25.8]} 12. Qxe3 {[%clk 0:01:55.1]}
12... Nb6 {[%clk 0:02:10.5]} 13. Bb3 {[%clk 0:01:51.5]} 13... Bf5 {[%clk
0:02:11.1]} 14. Nf3 {[%clk 0:01:50.3]} 14... Rac8 {[%clk 0:01:40.5]} 15. Qxe5
{[%clk 0:01:46.6]} 15... Rc5 {[%clk 0:01:40.2]} 16. Qe2 {[%clk 0:01:30.1]} 16...
Bxc2 {[%clk 0:01:18.7]} 17. Bxc2 {[%clk 0:01:08.3]} 17... Qxa2 {[%clk
0:01:18.3]} 18. Qd3 {[%clk 0:00:51.8]} 18... Nc4 {[%clk 0:01:07.7]} 19. Qxh7#
{[%clk 0:00:51]} 1-0

[Event "Late-Titled-Tuesday-Blitz-May-07-2024"]
[Site "Chess.com"]
[Date "2024.05.07"]
[Round "11"]
[White "Licancabur"]
[Black "manitodeplomo"]
[Result "1-0"]
[WhiteElo "2503"]
[BlackElo "2581"]
[TimeControl "180+1"]
[EndTime "16:04:45 PDT"]
[Termination "Licancabur won by checkmate"]

1. d4 {[%clk 0:03:00.9]} 1... c5 {[%clk 0:02:34.1]} 2. d5 {[%clk 0:02:59.9]}
2... g6 {[%clk 0:02:32.6]} 3. Nc3 {[%clk 0:02:59.3]} 3... Bg7 {[%clk 0:02:32.7]}
4. e4 {[%clk 0:02:59.8]} 4... d6 {[%clk 0:02:32.8]} 5. Nf3 {[%clk 0:02:59.8]}
5... Nf6 {[%clk 0:02:32.5]} 6. Be2 {[%clk 0:03:00]} 6... O-O {[%clk 0:02:32]} 7.
O-O {[%clk 0:03:00.2]} 7... Na6 {[%clk 0:02:32.6]} 8. Nd2 {[%clk 0:02:59]} 8...
Nc7 {[%clk 0:02:32.7]} 9. a4 {[%clk 0:02:59.2]} 9... b6 {[%clk 0:02:29.4]} 10.
Nc4 {[%clk 0:02:40.5]} 10... Ba6 {[%clk 0:02:14.6]} 11. Bg5 {[%clk 0:02:37.9]}
11... h6 {[%clk 0:02:13.5]} 12. Bh4 {[%clk 0:02:36.8]} 12... Bxc4 {[%clk
0:02:14]} 13. Bxc4 {[%clk 0:02:36.1]} 13... a6 {[%clk 0:02:14.5]} 14. f4 {[%clk
0:02:32.7]} 14... Nd7 {[%clk 0:02:11.9]} 15. e5 {[%clk 0:02:22.7]} 15... dxe5
{[%clk 0:02:03.1]} 16. d6 {[%clk 0:02:21.3]} 16... exf4 {[%clk 0:01:28.7]} 17.
dxe7 {[%clk 0:02:16.7]} 17... Qc8 {[%clk 0:01:28.3]} 18. exf8=Q+ {[%clk
0:02:16.3]} 18... Nxf8 {[%clk 0:01:27.3]} 19. Rxf4 {[%clk 0:02:10.7]} 19... Nce6
{[%clk 0:01:24.6]} 20. Re4 {[%clk 0:02:03.3]} 20... Nd4 {[%clk 0:01:20.5]} 21.
Qf1 {[%clk 0:01:58.4]} 21... Nf5 {[%clk 0:01:09]} 22. g4 {[%clk 0:01:40.1]}
22... Nd6 {[%clk 0:01:04.5]} 23. Bd5 {[%clk 0:01:11.7]} 23... Nxe4 {[%clk
0:01:02]} 24. Qxf7+ {[%clk 0:01:09.3]} 24... Kh7 {[%clk 0:00:56.6]} 25. Qg8#
{[%clk 0:01:09.2]} 1-0

[Event "Late-Titled-Tuesday-Blitz-May-07-2024"]
[Site "Chess.com"]
[Date "2024.05.07"]
[Round "11"]
[White "Andrii_Prydun"]
[Black "PhileKhoob"]
[Result "1-0"]
[WhiteElo "2417"]
[BlackElo "2334"]
[TimeControl "180+1"]
[EndTime "16:04:46 PDT"]
[Termination "Andrii_Prydun won by resignation"]

1. e4 {[%clk 0:03:00.9]} 1... c6 {[%clk 0:02:57.7]} 2. d4 {[%clk 0:03:00.9]}
2... d5 {[%clk 0:02:58.3]} 3. e5 {[%clk 0:03:01.8]} 3... Bf5 {[%clk 0:02:57.7]}
4. Bd3 {[%clk 0:03:02.3]} 4... Bxd3 {[%clk 0:02:56.5]} 5. cxd3 {[%clk
0:03:03.2]} 5... e6 {[%clk 0:02:52.8]} 6. Nc3 {[%clk 0:03:03.4]} 6... c5 {[%clk
0:02:52.7]} 7. dxc5 {[%clk 0:03:04.3]} 7... Bxc5 {[%clk 0:02:52.4]} 8. d4 {[%clk
0:03:05]} 8... Bb4 {[%clk 0:02:52.4]} 9. Qg4 {[%clk 0:02:54.9]} 9... Ne7 {[%clk
0:02:47.3]} 10. Qxg7 {[%clk 0:02:54.3]} 10... Rg8 {[%clk 0:02:47.8]} 11. Qxh7
{[%clk 0:02:54.8]} 11... Rxg2 {[%clk 0:02:45]} 12. Ne2 {[%clk 0:02:54.9]} 12...
Rg8 {[%clk 0:02:43.5]} 13. h4 {[%clk 0:02:45.9]} 13... Nbc6 {[%clk 0:02:41.9]}
14. Bg5 {[%clk 0:02:45.8]} 14... Qa5 {[%clk 0:02:33.9]} 15. Rh3 {[%clk
0:02:41.4]} 15... Kd7 {[%clk 0:02:07.9]} 16. Rf3 {[%clk 0:02:38.8]} 16... Raf8
{[%clk 0:02:04.1]} 17. Rxf7 {[%clk 0:02:38.5]} 17... Rxf7 {[%clk 0:02:03.9]} 18.
Qxf7 {[%clk 0:02:39.4]} 18... Re8 {[%clk 0:01:59.2]} 19. Kf1 {[%clk 0:02:33]}
19... Qd8 {[%clk 0:01:45.6]} 20. Nf4 {[%clk 0:02:22.7]} 20... Nxd4 {[%clk
0:01:28.8]} 21. Ncxd5 {[%clk 0:02:00.1]} 21... Rf8 {[%clk 0:01:10.3]} 22. Nf6+
{[%clk 0:01:12.6]} 22... Kc8 {[%clk 0:01:01.8]} 23. Rc1+ {[%clk 0:01:09.2]}
23... Kb8 {[%clk 0:00:59.8]} 24. Nxe6 {[%clk 0:01:08.9]} 1-0

[Event "Late-Titled-Tuesday-Blitz-May-07-2024"]
[Site "Chess.com"]
[Date "2024.05.07"]
[Round "11"]
[White "giomar27"]
[Black "robertoalejandro10"]
[Result "0-1"]
[WhiteElo "2459"]
[BlackElo "2513"]
[TimeControl "180+1"]
[EndTime "16:04:47 PDT"]
[Termination "robertoalejandro10 won by resignation"]

1. f3 {[%clk 0:03:00.9]} 1... Nf6 {[%clk 0:02:54]} 2. Nh3 {[%clk 0:03:00.7]}
2... g6 {[%clk 0:02:54.2]} 3. Nf2 {[%clk 0:03:01.2]} 3... Bg7 {[%clk 0:02:54.9]}
4. g3 {[%clk 0:03:01.9]} 4... O-O {[%clk 0:02:54.7]} 5. Bg2 {[%clk 0:03:02.6]}
5... c5 {[%clk 0:02:54.8]} 6. O-O {[%clk 0:03:03.2]} 6... Nc6 {[%clk 0:02:55.7]}
7. d3 {[%clk 0:03:01.7]} 7... b6 {[%clk 0:02:54.9]} 8. Nc3 {[%clk 0:03:01.7]}
8... Bb7 {[%clk 0:02:55.4]} 9. e4 {[%clk 0:03:02.3]} 9... e6 {[%clk 0:02:53.9]}
10. Be3 {[%clk 0:03:02]} 10... d5 {[%clk 0:02:53.6]} 11. Ne2 {[%clk 0:02:59]}
11... dxe4 {[%clk 0:02:45.2]} 12. fxe4 {[%clk 0:02:58.7]} 12... Rc8 {[%clk
0:02:41.2]} 13. Qd2 {[%clk 0:02:58.7]} 13... Nd4 {[%clk 0:02:30.6]} 14. Bg5
{[%clk 0:02:51.3]} 14... h6 {[%clk 0:02:22.8]} 15. Bxf6 {[%clk 0:02:47.1]} 15...
Nxe2+ {[%clk 0:02:18.3]} 16. Qxe2 {[%clk 0:02:45.7]} 16... Bxf6 {[%clk
0:02:18.7]} 17. e5 {[%clk 0:02:37.5]} 17... Bxg2 {[%clk 0:02:16.5]} 18. Kxg2
{[%clk 0:02:38.4]} 18... Qd5+ {[%clk 0:02:13.8]} 19. Ne4 {[%clk 0:02:33.2]}
19... Bxe5 {[%clk 0:02:09.7]} 20. Qg4 {[%clk 0:02:22.9]} 20... f5 {[%clk
0:01:35]} 21. Qxg6+ {[%clk 0:02:22.5]} 21... Bg7 {[%clk 0:01:34.4]} 22. c4
{[%clk 0:02:23.1]} 22... Qc6 {[%clk 0:01:32]} 23. Kg1 {[%clk 0:02:19.6]} 23...
fxe4 {[%clk 0:01:30.7]} 24. dxe4 {[%clk 0:02:19.7]} 24... Qd6 {[%clk 0:01:02.1]}
25. Rad1 {[%clk 0:02:18.6]} 25... Qe5 {[%clk 0:00:54]} 26. Rd7 {[%clk
0:02:14.5]} 26... Rxf1+ {[%clk 0:00:48.1]} 27. Kxf1 {[%clk 0:02:14.7]} 27...
Rf8+ {[%clk 0:00:48]} 28. Kg1 {[%clk 0:02:15.1]} 28... Qf6 {[%clk 0:00:42.5]}
29. Qxf6 {[%clk 0:02:14.5]} 29... Bxf6 {[%clk 0:00:40.5]} 30. Rxa7 {[%clk
0:02:15.4]} 30... Bxb2 {[%clk 0:00:40.2]} 31. Rb7 {[%clk 0:02:15.6]} 31... Bd4+
{[%clk 0:00:39.6]} 32. Kg2 {[%clk 0:02:15.7]} 32... Rf2+ {[%clk 0:00:37.5]} 33.
Kh3 {[%clk 0:02:15.5]} 33... Rxa2 {[%clk 0:00:38]} 34. Rxb6 {[%clk 0:02:15.7]}
34... Kf7 {[%clk 0:00:38.4]} 35. Rb7+ {[%clk 0:02:15.7]} 35... Kg6 {[%clk
0:00:34.8]} 36. Re7 {[%clk 0:02:15.2]} 36... e5 {[%clk 0:00:34.6]} 37. Re6+
{[%clk 0:02:14.6]} 37... Kg7 {[%clk 0:00:34.7]} 38. g4 {[%clk 0:02:12.3]} 38...
Re2 {[%clk 0:00:30.7]} 39. Kg3 {[%clk 0:02:10.8]} 39... Rxe4 {[%clk 0:00:30.8]}
40. h4 {[%clk 0:02:10.6]} 40... Re3+ {[%clk 0:00:31.2]} 41. Kg2 {[%clk
0:02:10.6]} 41... Rc3 {[%clk 0:00:31.8]} 42. h5 {[%clk 0:02:09.5]} 42... Rxc4
{[%clk 0:00:31.5]} 43. Kf3 {[%clk 0:02:10.1]} 43... Bb2 {[%clk 0:00:28.7]} 44.
Ke3 {[%clk 0:02:10.5]} 0-1

[Event "Late-Titled-Tuesday-Blitz-May-07-2024"]
[Site "Chess.com"]
[Date "2024.05.07"]
[Round "11"]
[White "Iball95"]
[Black "MITerryble"]
[Result "1-0"]
[WhiteElo "2923"]
[BlackElo "3016"]
[TimeControl "180+1"]
[EndTime "16:04:49 PDT"]
[Termination "Iball95 won by resignation"]

1. e4 {[%clk 0:02:59.3]} 1... e6 {[%clk 0:03:00.4]} 2. d4 {[%clk 0:03:00.1]}
2... d5 {[%clk 0:03:00.8]} 3. Nc3 {[%clk 0:03:00.8]} 3... Nf6 {[%clk 0:03:00.9]}
4. Bd3 {[%clk 0:03:01.5]} 4... c5 {[%clk 0:02:52.5]} 5. Nf3 {[%clk 0:03:01.6]}
5... cxd4 {[%clk 0:02:38.5]} 6. Nxd4 {[%clk 0:03:01.1]} 6... Nc6 {[%clk
0:02:39.1]} 7. Bb5 {[%clk 0:02:59]} 7... Bd7 {[%clk 0:02:38.9]} 8. exd5 {[%clk
0:02:59]} 8... exd5 {[%clk 0:02:39.2]} 9. O-O {[%clk 0:02:59]} 9... Be7 {[%clk
0:02:39.3]} 10. Be2 {[%clk 0:02:59.6]} 10... O-O {[%clk 0:02:38.9]} 11. Bf3
{[%clk 0:03:00.3]} 11... Be6 {[%clk 0:02:23.8]} 12. Re1 {[%clk 0:03:00.7]} 12...
Qd7 {[%clk 0:02:23.8]} 13. Bg5 {[%clk 0:02:59.3]} 13... Rad8 {[%clk 0:02:21.8]}
14. a3 {[%clk 0:02:57.9]} 14... h6 {[%clk 0:02:20.1]} 15. Bh4 {[%clk 0:02:58]}
15... g5 {[%clk 0:02:09.9]} 16. Bg3 {[%clk 0:02:57.4]} 16... Bc5 {[%clk
0:02:10.1]} 17. Nb3 {[%clk 0:02:51.5]} 17... Be7 {[%clk 0:02:03.8]} 18. Qd2
{[%clk 0:02:44.8]} 18... d4 {[%clk 0:02:00.3]} 19. Ne4 {[%clk 0:02:43.7]} 19...
Nxe4 {[%clk 0:01:55]} 20. Bxe4 {[%clk 0:02:44.6]} 20... d3 {[%clk 0:01:44]} 21.
Rad1 {[%clk 0:02:13.2]} 21... dxc2 {[%clk 0:01:43]} 22. Qxc2 {[%clk 0:02:14.1]}
22... Qc8 {[%clk 0:01:42.9]} 23. Nc5 {[%clk 0:01:44.2]} 23... Nd4 {[%clk
0:01:39]} 24. Bh7+ {[%clk 0:01:44.3]} 24... Kg7 {[%clk 0:01:29.7]} 25. Be5+
{[%clk 0:01:26.1]} 25... Bf6 {[%clk 0:01:29.2]} 26. Bxf6+ {[%clk 0:01:23.5]}
26... Kxf6 {[%clk 0:01:30.1]} 27. Qc3 {[%clk 0:01:16.6]} 27... b6 {[%clk
0:01:28.1]} 28. Rxd4 {[%clk 0:01:14.2]} 28... Qxc5 {[%clk 0:01:23.4]} 29. Rc4+
{[%clk 0:01:12.4]} 29... Ke7 {[%clk 0:01:19.1]} 30. Rxc5 {[%clk 0:01:12.2]}
30... bxc5 {[%clk 0:01:20]} 31. Qxc5+ {[%clk 0:01:11.6]} 31... Rd6 {[%clk
0:01:20.9]} 32. Qxa7+ {[%clk 0:01:11.7]} 32... Rd7 {[%clk 0:01:21.2]} 33. Qc5+
{[%clk 0:01:11.2]} 33... Rd6 {[%clk 0:01:21.8]} 34. Bf5 {[%clk 0:01:09.7]} 34...
Rc8 {[%clk 0:01:19.9]} 35. Qxc8 {[%clk 0:01:09]} 1-0